{"text_format":"2","workbook":"xlsx","n_sheets":1,"sheets":["Tabelle1"],"not_rendered":{"charts":0,"images":1,"macros":0,"external_links":0,"defined_names":0,"comments":1,"pivot_tables":0},"unopened":[],"bounds":{"document_bytes":16777216,"sheet_cells":100000,"run_cost":"one","rows_first":2000,"rows_last":500,"rows_between":2000,"halvings":0,"cell_chars":16384,"cell_head_chars":4096},"cells_cut":0,"cells_raw":0,"read":"whole","date_system":"1900"}

{"sheet":"Tabelle1","index":0,"n_rows":71,"n_cols":7,"rows_kept":71,"cut":false,"hidden":false,"merged":[[65,0,65,6],[63,0,63,6],[67,0,67,6],[70,0,70,6],[57,0,57,6],[61,0,61,6],[62,0,62,6],[64,0,64,6],[42,0,42,6],[0,5,0,6],[0,0,0,1],[6,1,6,3],[6,4,6,6]]}
["Einkommensteuererklärung"]
[2020]
[]
[]
["Private Versicherungen",null,null,null,"      (blaue Felder sind Eingabefelder)"]
[]
["Name:"]
[null,"Anzahl","Einzelbetrag","Summe","Anzahl","Einzelbetrag","Summe"]
[]
[]
["Beiträge zu Versorgungswerken/ zur Rentenversicherung (freiwillig)"]
[null,null,null,{"$f":"B12*C12","v":0},null,null,{"$f":"E12*F12","v":0}]
[null,null,null,{"$f":"B13*C13","v":0},null,null,{"$f":"E13*F13","v":0}]
[]
["Kranken-/ Pflegeversicherung (freiwillig gesetzlich oder privat)"]
["Krankenversicherung-Basisleistungen",null,null,{"$f":"C16*B16","v":0},null,null,{"$f":"E16*F16","v":0}]
["Krankenversicherung-Zusatzleistungen",null,null,0,null,null,{"$f":"E17*F17","v":0}]
["Pflegeversicherung",null,null,0,null,null,0]
[]
["erstattete Beiträge"]
[]
["Arbeitslosigkeitsversicherung"]
[null,null,null,{"$f":"B23*C23","v":0},null,null,{"$f":"E23*F23","v":0}]
[null,null,null,{"$f":"B24*C24","v":0},null,null,{"$f":"E24*F24","v":0}]
[]
["Erwerbs- und Berufsunfähigkeitsversicherung (freiwillig eigenständig)"]
[null,null,null,{"$f":"B27*C27","v":0},null,null,{"$f":"E27*F27","v":0}]
[null,null,null,{"$f":"B28*C28","v":0},null,null,{"$f":"E28*F28","v":0}]
[]
["Unfall-, Haftpflicht-, Risikolebensversicherungen"]
[null,null,null,{"$f":"B31*C31","v":0},null,null,{"$f":"E31*F31","v":0}]
[null,null,null,{"$f":"B32*C32","v":0},null,null,{"$f":"E32*F32","v":0}]
[null,null,null,0,null,null,0]
[null,null,null,0,null,null,0]
[]
["Rentenversicherung mit Kapitalwahlrecht (vor 01.01.2005)"]
[null,null,null,{"$f":"B37*C37","v":0},null,null,{"$f":"E37*F37","v":0}]
[]
["Rentenversicherung ohne Kapitalwahlrecht (vor 01.01.2005)"]
[null,null,null,{"$f":"B40*C40","v":0},null,null,{"$f":"E40*F40","v":0}]
[]
[]
["Wenn Sie Arbeitnehmer sind und über eine Versicherung verfügen, die auch berufliche Risiken abdeckt, füllen Sie bitte die folgenden Felder aus:"]
[]
["Unfallversicherung (oben angegeben)"]
["Ausschließlich beruflich"]
["Beruflich und privat"]
[]
["Rechtschutzversicherung"]
["Versicherungsbeitrag",null,null,{"$f":"B50*C50","v":0},null,null,{"$f":"E50*F50","v":0}]
["Anzahl der versicherten Bereiche"]
[]
[]
[]
["Erläuterungen "]
[]
["Zu Versorgungswerken:"]
["Bei Versorgungswerken handelt es sich um die berufsständische Versorgung von Mitgliedern kammerfähiger freier Berufe (z. B. Ärzte, Architekten, Rechtsanwälte, Ingenieure)."]
[]
[]
["Zu Kapitalversicherungen und zu Kapitalwahlrecht:"]
["Bei den berücksichtigungsfähigen kapitalversicheurngen handelt es sich um Kapital-Lebensversicherungen, die vor dem 01.01.2005 abgeschlossen wurden. "]
["Ein Kapitalwahlrecht hat ein Versicherungsnehmer, der sich am Ende der Versicherungslaufzeit entscheiden kann, ob er den angesparten Betrag in monatlichen Raten oder als einmal Auszahlung erhalten möchte. "]
["Fondsgebundene Lebensversicherungen, bei denen es sich nicht um zertifizierte Verträge für die Riester- oder Rürup-Renten handelt, sind nicht berücksichtigungsfähig."]
[]
[]
["Zu der Rechtschutzversicherung"]
["Hierzu zählen z. B. Privat-, Arbeits-/Berufs-, Verkehrs-, Mietrechtschutzversicherung. "]
[]
["Beispiel zum Eingabefeld \"Anzahl der versicherten Bereiche\":"]
["Bei folgendem Text auf ihrem Versicherungsschein: \"Privat-, Berufs- und Verkehrs-RS\" tragen Sie bitte eine \"3\" ein"]